Cogmind - Beta 13 @@@ ROGUE MODE // 2024.04.22 @ 18:13:42 Player: Wesmed Result: Destroyed by as-93622 with Assembled Blade Performance ------------- Evolutions (0) 0 Regions Visited (2) 400 Robots Destroyed (21) 105 Value Destroyed (496) 496 Prototype IDs (0) 0 Alien Tech Used (0) 0 Bonus (0) 0 TOTAL SCORE: 1001 Bonus ------- None Cogmind --------- Core Integrity 0/250 Matter 269/300 Energy 49/250 System Corruption 0% Temperature Cool (0) Movement Walking (260) Ox2 Location -10/Mines Parts ------- > --- POWER (1) -------- Ion Engine > --- PROPULSION (2) --- Aluminum Leg Aluminum Leg > --- UTILITY (2) ------ High-capacity Storage Unit Structural Scanner > --- WEAPON (2) ------- Light Assault Rifle Mining Laser > --- INVENTORY (20) --- Ion Engine Ion Engine Aluminum Leg Aluminum Leg Aluminum Leg Aluminum Leg Improved Heat Sink Improved Heat Sink Medium Matter Pod (100) Sensor Array ECM Suite Bomb Drone Bay Particle Gun Light Assault Rifle Light Assault Rifle Light Assault Rifle Grenade Launcher Ripper Peak State ------------ > --- POWER ------------ (None) > --- PROPULSION ------- Aluminum Leg Aluminum Leg > --- UTILITY ---------- Improved Heat Sink High-capacity Storage Unit > --- WEAPON ----------- Particle Gun Light Assault Rifle > --- INVENTORY -------- Ion Engine Ion Engine Ion Engine Aluminum Leg Aluminum Leg Aluminum Leg Aluminum Leg Improved Heat Sink Medium Matter Pod Structural Scanner Sensor Array ECM Suite Bomb Drone Bay Light Assault Rifle Light Assault Rifle Grenade Launcher Mining Laser Ripper [Rating: 12] Favorites ----------- Power Ion Engine Engine Ion Engine Propulsion Aluminum Leg Leg Aluminum Leg Utility Structural Scanner Device Structural Scanner Storage High-capacity Storage Unit Processor Signal Interpreter Weapon Light Assault Rifle Energy Gun Particle Gun Ballistic Gun Light Assault Rifle Special Weapon Mining Laser Build | -11 -10 -10 ------- Run | Yrd Mat Min Slots Evolved . | . . . Power . | . . . Propulsion . | . . . Utility . | . . . Weapon . | . . . Parts Attached 23 | 6 10 7 Power 3 | 1 1 1 Engine 3 | 1 1 1 Core . | . . . Reactor . | . . . Propulsion 6 | 2 3 1 Treads . | . . . Leg 6 | 2 3 1 Wheel . | . . . Hover . | . . . Flight . | . . . Utility 8 | 1 5 2 Device 4 | . 2 2 Storage 3 | 1 2 . Processor 1 | . 1 . Hackware . | . . . Protection . | . . . Artifact . | . . . Weapon 6 | 2 1 3 Energy Gun 1 | . 1 . Energy Cannon . | . . . Ballistic Gun 4 | 2 . 2 Ballistic Cannon . | . . . Launcher . | . . . Special Weapon 1 | . . 1 Impact Weapon . | . . . Slashing Weapon . | . . . Piercing Weapon . | . . . Special Melee Weapon . | . . . Unidentified Prototypes . | . . . Parts Lost 2 | . 1 1 Power 1 | . 1 . Propulsion 1 | . . 1 Utility . | . . . Weapon . | . . . Highest Loss Streak 1 | . 1 1 To Critical Strikes . | . . . Average Slot Usage (%) 85 | . 85 85 Engine 1 | . 2 . Leg 28 | . 28 28 Device 11 | . 9 14 Storage 14 | . 14 14 Processor 1 | . 2 . Energy Gun 12 | . 11 13 Ballistic Gun 15 | . 16 14 Naked Turns . | . . . Heaviest Build 45 | 12 45 45 Greatest Support 20 | 20 20 20 Greatest Overweight (x) 2 | . 2 2 Average Overweight (x) 1 | . . 2 Largest Inventory Capacity 20 | 8 20 20 Average Capacity 17 | 6 15 20 Most Carried 20 | 5 20 20 Average Carried 16 | 3 13 19 Final Capacity 20 | 8 20 20 Final Carried 19 | 4 19 19 Class Distribution -------------------- 63% | Scavenger-Mutant 36% | Mutant Dominant Class ---------------- Mutant | -10/Materials Scavenger-Mutant | -10/Mines Resources | -11 -10 -10 ----------- Run | Yrd Mat Min Matter Collected 581 | 199 291 91 Remotely . | . . . Salvage Created 587 | . 496 91 Parts 51 | . 43 8 Haulers Intercepted . | . . . Recyclers Shooed 1 | . 1 . Parts Field Recycled . | . . . Retrieved Matter . | . . . Parts Self-Destructed . | . . . Prevented . | . . . Kills | -11 -10 -10 ------- Run | Yrd Mat Min Combat Hostiles Destroyed 16 | . 10 6 Guns 16 | . 10 6 Classes Destroyed 4 | . 3 1 Builder 3 | . 3 . Watcher 2 | . 2 . Swarmer 6 | . . 6 Grunt 10 | . 10 . Best Kill Streak 3 | . 2 3 Combat Bots Only 3 | . 2 3 Max Kills in Single Turn 1 | . 1 1 Gunslinging . | . . . Exploded . | . . . Melee . | . . . Uniques/NPCs Destroyed . | . . . Combat | -11 -10 -10 -------- Run | Yrd Mat Min Hostile Shots Fired 89 | . 36 53 Missed 15 | . 7 8 Damage Taken 827 | . 399 428 Core 278 | . 78 200 Absorbed by Shields . | . . . Core Remaining (%) 100 | 100 . . Volleys Fired 75 | . 49 26 Largest 2 | . 2 2 Hottest 100 | . 85 100 Shots Fired 145 | . 97 48 Gun 143 | . 97 46 Cannon . | . . . Launcher . | . . . Special 2 | . . 2 Kinetic 89 | . 65 24 Thermal 56 | . 32 24 Explosive . | . . . Electromagnetic . | . . . Robot Hit Streak 19 | . 19 3 Robot Miss Streak 6 | . 6 4 Penetration Max . | . . . Secondary Targets 3 | . . 3 Max Gunslinging Chain 1 | . . 1 Shots Hit Robots 77 | . 56 21 Core Hits 38 | . 30 8 Critical Kills . | . . . Critical Parts Destroyed . | . . . Critical Strikes 3 | . 2 1 Burn 3 | . 2 1 Melee Attacks . | . . . Impact . | . . . Slashing . | . . . Piercing . | . . . Sneak Attacks . | . . . Combat Hostiles . | . . . Follow-up Attacks . | . . . Damage Inflicted 847 | . 598 249 Guns 843 | . 598 245 Cannons . | . . . Explosions . | . . . Melee . | . . . Ramming 4 | . . 4 Kinetic 428 | . 330 98 Thermal 415 | . 268 147 Explosive . | . . . Electromagnetic . | . . . Impact . | . . . Slashing . | . . . Piercing . | . . . Highest Corruption . | . . . Average Corruption . | . . . Corruption Purged . | . . . Corruption Blocked . | . . . Overload Shots . | . . . Overflow Damage . | . . . Projectiles . | . . . Explosions . | . . . Melee . | . . . Knockbacks . | . . . Impact . | . . . Kinetic . | . . . Secondary . | . . . Self-Inflicted Damage . | . . . Shots . | . . . Rammed . | . . . Targets Rammed 1 | . . 1 Kicked 1 | . . 1 Crushed . | . . . Highest Temperature 226 | . 188 226 Average Temperature 63 | . 47 94 Received Heat Transfer 255 | . 255 . Effects 2 | . . 2 Interference 2 | . . 2 Siege Activations . | . . . Robots Corrupted . | . . . Combat Hostiles . | . . . Parts Fried . | . . . Impact Corruptions . | . . . Robots Melted . | . . . Combat Hostiles . | . . . Parts Melted 3 | . 2 1 Heat Transferred 1221 | . 814 407 Parts Sabotaged . | . . . Parts Stolen . | . . . Parts Stripped . | . . . Power Chain Reactions . | . . . Alert | -11 -10 -10 ------- Run | Yrd Mat Min Peak Influence 121 | . 121 76 Initial . | . . . Average 39 | . 59 21 Maximum Alert Level . | . . . Low Security (%) 100 | 100 100 100 Level 1 . | . . . Level 2 . | . . . Level 3 . | . . . Level 4 . | . . . Level 5 . | . . . High Security . | . . . Max Security . | . . . Squads Dispatched 1 | . 1 . Investigation . | . . . Extermination . | . . . Reinforcement 1 | . 1 . Assault . | . . . Garrison . | . . . Intercept . | . . . Searches Triggered . | . . . Construction Impeded . | . . . Haulers Reinforced . | . . . Active Scanning Responses . | . . . Cargo Convoy Interrupts . | . . . Stealth | -11 -10 -10 --------- Run | Yrd Mat Min Distress Signals 1 | . 1 . Communications Jammed . | . . . Distress Signals . | . . . Times Spotted 28 | . 21 7 Peak Tracking Total 4 | . 4 3 Tactical Retreats . | . . . Traps | -11 -10 -10 ------- Run | Yrd Mat Min Traps Triggered . | . . . Indirectly . | . . . Trap Hack Attempts . | . . . Triggered . | . . . Disarmed . | . . . Reprogrammed . | . . . Reused . | . . . Traps Extracted . | . . . Installed . | . . . Triggered . | . . . Machines | -11 -10 -10 ---------- Run | Yrd Mat Min Machines Disabled 1 | . . 1 Max in Single Turn 1 | . . 1 Machines Repaired . | . . . Machines Dismantled . | . . . Machines Sabotaged . | . . . Overloaded Fab Kills . | . . . Hacking | -11 -10 -10 --------- Run | Yrd Mat Min Machines Accessed 6 | . 5 1 Terminals 5 | . 5 . Fabricators . | . . . Repair Stations . | . . . Recycling Units . | . . . Scanalyzers . | . . . Garrison Access . | . . . Total Hacks 8 | . 7 1 Successful 4 | . 3 1 Failed 4 | . 4 . Catastrophic 2 | . 2 . Database Lockouts . | . . . Manual . | . . . Terminals 7 | . 7 . Fabricators . | . . . Repair Stations . | . . . Recycling Units . | . . . Scanalyzers . | . . . Garrison Access . | . . . Terminal Hacks 4 | . 3 1 Open Door 1 | . . 1 Terminal Index 1 | . 1 . Locate Traps 2 | . 2 . Fabricator Hacks . | . . . Repair Station Hacks . | . . . Recycling Unit Hacks . | . . . Scanalyzer . | . . . Garrison Access Hacks . | . . . Unauthorized Hacks . | . . . Terminals . | . . . Fabricators . | . . . Repair Stations . | . . . Recycling Units . | . . . Scanalyzers . | . . . Garrison Access . | . . . Data Cores Recovered . | . . . Used . | . . . Hacking Detections 5 | . 5 . Full Trace Events . | . . . Feedback Events . | . . . Feedback Blocked . | . . . Robot Schematics Acquired . | . . . Robots Built . | . . . Authchips . | . . . Time . | . . . Total Robot Build Rating . | . . . Part Schematics Acquired . | . . . Parts Built . | . . . Authchips . | . . . Time . | . . . Total Part Build Rating . | . . . Parts Repaired . | . . . Time . | . . . Parts Recycled . | . . . Recycled Matter . | . . . Retrieved Matter . | . . . Retrieved Components . | . . . Parts Scanalyzed . | . . . Part Schematics Acquired . | . . . Parts Damaged . | . . . Bothacking | -11 -10 -10 ------------ Run | Yrd Mat Min Used RIF Installer . | . . . Robots Hacked . | . . . Non-combat . | . . . Combat . | . . . Robot Hacks Applied . | . . . Relay Couplers Released . | . . . Fabnet Peak Effective % . | . . . Robots Rewired . | . . . Allies Hacked . | . . . Hacks Repelled . | . . . Allies | -11 -10 -10 -------- Run | Yrd Mat Min Total Allies . | . . . Largest Group . | . . . Highest-Rated Group . | . . . Highest-Rated Ally . | . . . Total Orders . | . . . Ally Attacks . | . . . Total Damage . | . . . Kills . | . . . Allies Corrupted . | . . . Allies Melted . | . . . Intel | -11 -10 -10 ------- Run | Yrd Mat Min Robot Analysis Total . | . . . Derelict Logs Recovered 1 | . . 1 Drone Launches . | . . . Drone Recoveries . | . . . Exploration | -11 -10 -10 ------------- Run | Yrd Mat Min Turns Passed 2473 | 63 1224 1186 Spaces Moved 999 | 44 535 420 Core 4 | 4 . . Treads . | . . . Legs 995 | 40 535 420 Wheels . | . . . Hover . | . . . Flight . | . . . Fastest Speed 50 | 50 120 260 Average Speed 214 | 113 187 260 Slowest Speed 260 | 120 260 260 Overloaded Moves . | . . . Propulsion Burnouts . | . . . Robots Hopped . | . . . Cave-ins Triggered . | . . . Exploration Rate (%) 51 | 4 66 85 Regions Visited 2 Branch Regions 1 Pre-discovered Areas . | . . . Known Exits Taken . | . . . Unknown Exits Taken 2 | 1 1 . Scrap Searched 2 | . . 2 Spaces Dug . | . . . Terrain Destroyed 1 | . . 1 Melee . | . . . Projectile 1 | . . 1 AOE . | . . . Terrain Rammed . | . . . Walls Destroyed . | . . . Machines Disabled . | . . . Actions | -11 -10 -10 --------- Run | Yrd Mat Min Total 1196 | 55 676 465 Wait 59 | . 57 2 Move 997 | 43 534 420 Hop . | . . . Pick Up 27 | 6 17 4 Fast Attach 7 | 4 3 . Attach 5 | 2 1 2 Detach 1 | . 1 . Swap 11 | . 6 5 Drop 13 | . 8 5 Fire 75 | . 49 26 Melee . | . . . Ram . | . . . Kick 1 | . . 1 Crush . | . . . Escape Stasis . | . . . Rewire . | . . . Trap . | . . . Miscellaneous . | . . . Route ------- -11/Scrapyard -10/Materials (discovered 3 exits: *Mat x2 / *Min) -10/Mines (discovered 4 exits: *Mat x2 / [*Exi] / [Sub]) History --------- Turn | Location | Event 16 | -11/Scrapyard | Discovered new exit (range 16) 64 | -11/Scrapyard | Entered Materials 324 | -10/Materials | Build established: Mutant 480 | -10/Materials | Discovered new exit (range 16) 1084 | -10/Materials | Identified exit to Materials 1201 | -10/Materials | Build established: Scavenger-Mutant 1217 | -10/Materials | Discovered exit to Materials (range 6) 1249 | -10/Materials | Discovered new exit (range 16) 1288 | -10/Materials | Entered Mines 1325 | -10/Mines | Discovered exit to Materials (range 6) 1383 | -10/Mines | Found the Drone Emporium 1396 | -10/Mines | Found Prototype Device 1438 | -10/Mines | Discovered new exit (range 12) 1591 | -10/Mines | Found a hidden stash of uninstalled traps 1698 | -10/Mines | Learned Materials interactive machine intel 1861 | -10/Mines | A weapon hastily lodged in a ceiling crevice suddenly fell to the ground 1878 | -10/Mines | Discovered exit to Materials (range 11) 2201 | -10/Mines | Deemed a non-threat by the Exiles lab entrance 2201 | -10/Mines | Discovered new exit (range 6) 2267 | -10/Mines | Core integrity fell below 50% 2459 | -10/Mines | Excavation squad dispatched 2459 | -10/Mines | A large section of the Mines collapsed 2470 | -10/Mines | Core integrity fell below 20% 2474 | -10/Mines | Destroyed by as-93622 with Assembled Blade Last Messages --------------- 02290_ Aluminum Leg destroyed. 02292_ S-10 Pest destroyed. 02292_ Switching to secondary target: S-10 Pest. 02293_ Acquired 1 matter. 02294_ S-10 Pest destroyed. 02295_ Acquired 1 matter. 02297_ Overheating: System interference. 02297_ Particle Gun temporarily disabled. 02297_ Lgt. Assault Rifle temporarily disabled. 02298_ Acquired 10 matter. 02316_ Dropped Lgt. Assault Rifle. 02317_ Acquired Lgt. Assault Rifle. 02318_ Acquired 10 matter. 02339_ K-01 Serf collects debris. 02369_ Acquired 1 matter. 02459_ ALERT: Suspicious cave-in, suspected derelict activity in mines. Dispatching escorted excavation squad. Press '.', 'keypad 5' or scroll the mouse wheel to wait a turn. Map ----- +----------------------------------------------------+ | ??## ########## ##????????????????## # | | ??######################### ##????????????????## # | | ??###########??????######## ##????????????????## | | ?????????????????????????## ##????????????????## # | | ?????????????????????????##=##????#######?????## # | | ?????????????????????????##=##???############### # | | ?????????????????????????## ##???### ######### # | | ?????????????????????????## ##???##&& #### # | | ?????????????????????????## ##???## & ### ##### | | ?????????????????????????## ##???###& ### ##### | | ?????????????????????????## ##???### ### ##??? | | ?????????????????????????## ######## ##??? | | ?????????????????????????## ######## #####??? | | ?????????????????????????## ######??? | | ????????????????????########################?????? | | ???????????????????########################????### | | ???????????????????### ########???????????????### | | #############?????### #####??????????????## | | #############?????### ###??????????????## | | ## ##?????## ##??????????????## | | ## ##?????## ##??????????????## | | ## """ """ ##?????### ##### ##??????????????## | | ## """ """ ##??????######### ##??????????????## | | ## """ """ ##??????######;## ##??????????????## | | ## ##?????????##;a## ##??????????????## | | ## """ """ ##?????????###@#" ##??????????????## | | ## """ """ #######?????##### ###??????????????## | | ## """ """=#######?????##########?????????????? | | ## %%| = ##?????### ####???????????????? | | ## """ "" [#### ##??????## ##?????????????????? | | ## """ """[#### ##??????## ##??????????????????? | | ???""" """ #### ##??????## ##??????????????????? | | ?? #### ########## #####???????????????# | | ??############# ########## ######??????????????## | | ??###<#### # ###?????????????### | | ???## ## ############### ##????????????#### | | ???#### ############### ##????????####### | | ?????#### ########??????## ###???????####### | | ?????####### ######???### ####???????### | | ????###### ######?#### ###???????### | | ????### ####### ##????????## ### | | ????## ##### ##????????###??##### | | ????## ##?????????????##### | | ????## ## ##???????????###### | | ???### #### ##??????????##### | | ??### ######## ## ##??????????### | | ??## ############### ###??????????## | | ??## ######????######## ################ | | ??## ######???????????## ############### | | ??## ##???????????????### #### | +----------------------------------------------------+ Best States ------------- Heat Dissipation 39 Energy Generation 10 Energy Capacity 250 Matter Stores 300 Matter Capacity 300 Sight Range 16 Terrain Scan Density 10 Evasion (%) 55 Item Schematics ----------------- None Robot Schematics ------------------ None Fabricated ------------ Nothing Alien Tech Used ----------------- None Achievements -------------- None Challenges ------------ None Game ------ Seed ControlUltimateDetector Manual? 0 Play Time 00:17:25 Cumulative 13.7 hours Start 2024.04.22 @ 17:57:38 End 2024.04.22 @ 18:13:42 Sessions 1 Manual Loads 0 Difficulty Rogue Special Mode None Game No. 12 Rogue 4 Adventurer 8 Explorer 0 Win Type - Total 0 Types 0/0/0/0/0/0/0/0/0 Lore% 20 Gallery% 26 Achievement% 19 Wizard Run 0 Options --------- Layout 1 ASCII 0 Keyboard 0 Movement Arrows Keybinds 0 Fullscreen 1 Font 16/SmallcapsGlow Map View 55x38 Zoom Use 0% Tactical HUD 1 Map Filters NONE Filters NONE Steam 1 RUN: 999d9f3f-20d4-4da4-b390-26fba7e6063e